[Event "1000GM Spring IM-D 2024"]
[Site "New York"]
[Date "2024.03.31"]
[Round "8.7"]
[White "Gaw, Chloe"]
[Black "Bonin, Jay"]
[Result "1/2-1/2"]
[ECO "E42"]
[WhiteElo "2092"]
[BlackElo "2154"]
[Annotator "RC"]
[PlyCount "54"]
[EventDate "2024.03.26"]
[EventType "tourn"]
[EventCountry "USA"]
[SourceTitle "playchess.com"]
[Source "ChessBase"]
[SourceQuality "1"]
[TimeControl "5400+30"]

1. d4 {[%emt 0:00:31]} Nf6 {[%emt 0:03:29]} 2. c4 {[%emt 0:00:05]} e6 {[%emt 0:00:09]} 3. Nc3 {[%emt 0:00:07]} Bb4 {[%emt 0:00:04]} 4. e3 {[%emt 0:00:07]} c5 {[%emt 0:00:15]} 5. Nge2 {[%emt 0:00:12]} d5 {[%emt 0:00:08]} 6. a3 {[%emt 0:01:16]} Bxc3+ {[%emt 0:00:09]} 7. Nxc3 {[%emt 0:00:06]} cxd4 {[%emt 0:00:22]} 8. exd4 {[%emt 0:00:08]} dxc4 {[%emt 0:00:17]} 9. Bxc4 {[%emt 0:00:06]} Nc6 {[%emt 0:00:06]} 10. d5 {[%emt 0:02:57]} exd5 {[%emt 0:00:19]} 11. Nxd5 {[%emt 0:00:31]} Be6 {[%emt 0:00:50]} 12. Nxf6+ {[%emt 0:14:01]} Qxf6 {[%emt 0:00:19]} 13. Qe2 {[%emt 0:03:21]} Nd4 {[%emt 0:01:09]} 14. Qe4 {[%emt 0:02:32]} Rc8 {[%emt 0:03:35]} 15. Bxe6 {[%emt 0:06:06]} Nc2+ {[%emt 0:00:38]} 16. Kf1 {[%emt 0:01:10]} fxe6 {[%emt 0:00:35]} 17. Bg5 {[%emt 0:06:33]} Qf5 {[%emt 0:02:54]} 18. Qxf5 {[%emt 0:03:25]} exf5 {[%emt 0:00:10]} 19. Rc1 {[%emt 0:02:05]} Kf7 {[%emt 0:03:12]} 20. f3 {[%emt 0:06:11]} h6 {[%emt 0:02:55]} 21. Bd2 {[%emt 0:01:07]} Rhd8 {[%emt 0:00:21]} 22. Ke2 {[%emt 0:07:08]} Nd4+ {[%emt 0:02:07]} 23. Kf2 {[%emt 0:01:27]} Nb3 {[%emt 0:02:51]} 24. Rxc8 {[%emt 0:00:36]} Rxc8 {[%emt 0:00:05]} 25. Bc3 {[%emt 0:00:35]} Rd8 {[%emt 0:00:18]} 26. Ke2 {[%emt 0:02:14]} Nc5 {[%emt 0:01:06]} 27. Rd1 {[%emt 0:01:29]} Rxd1 {[%emt 0:00:49]} 1/2-1/2

[Event "1000GM Spring IM-D 2024"]
[Site "New York"]
[Date "2024.03.31"]
[Round "8.8"]
[White "Urhegyi, Marton"]
[Black "Ho, Carter"]
[Result "0-1"]
[ECO "A06"]
[WhiteElo "2258"]
[BlackElo "2108"]
[Annotator "ChessBase"]
[PlyCount "116"]
[EventDate "2024.03.26"]
[EventType "tourn"]
[EventCountry "USA"]
[SourceTitle "playchess.com"]
[Source "ChessBase"]
[SourceQuality "1"]
[TimeControl "5400+30"]

1. Nf3 {[%emt 0:00:03]} d5 {[%emt 0:01:26]} 2. b3 {[%emt 0:00:09]} c5 {[%emt 0:04:06]} 3. Bb2 {[%emt 0:00:04]} Nf6 {[%emt 0:01:46]} 4. e3 {[%emt 0:00:06]} Nc6 {[%emt 0:10:11]} 5. Bb5 {[%emt 0:00:09]} Bd7 {[%emt 0:03:25]} 6. Bxc6 {[%emt 0:00:08]} Bxc6 {[%emt 0:00:10]} 7. Ne5 {[%emt 0:00:03]} Qc7 {[%emt 0:05:11]} 8. O-O {[%emt 0:01:32]} g6 {[%emt 0:05:20]} 9. f4 {[%emt 0:07:19]} Bg7 {[%emt 0:00:34]} 10. Nxc6 {[%emt 0:03:52]} Qxc6 {[%emt 0:00:19]} 11. d3 {[%emt 0:00:35]} O-O {[%emt 0:02:38]} 12. Nd2 {[%emt 0:00:29]} b5 {[%emt 0:06:11]} 13. Qf3 {[%emt 0:02:09]} Rac8 {[%emt 0:55:43]} 14. a4 {[%emt 0:01:58]} c4 {[%emt 0:00:00]} 15. axb5 {[%emt 0:15:42]} Qxb5 {[%emt 0:00:00]} 16. Bxf6 {[%emt 0:16:17]} Bxf6 {[%emt 0:00:00]} 17. bxc4 {[%emt 0:00:57]} dxc4 {[%emt 0:00:00]} 18. Rfb1 {[%emt 0:06:08]} Qf5 {[%emt 0:00:00]} 19. g4 {[%emt 0:01:53]} Qe6 {[%emt 0:00:00]} 20. d4 {[%emt 0:01:55]} Rfd8 {[%emt 0:00:00]} 21. c3 {[%emt 0:01:48]} Rc7 {[%emt 0:00:00]} 22. Ra4 {[%emt 0:02:35]} Qd7 {[%emt 0:00:00]} 23. Ra5 {[%emt 0:05:23]} Rc6 {[%emt 0:00:00]} 24. Rab5 {[%emt 0:09:09]} Rb6 {[%emt 0:00:00]} 25. R5b4 {[%emt 0:02:43]} Rxb4 {[%emt 0:00:00]} 26. Rxb4 {[%emt 0:00:09]} a5 {[%emt 0:00:00]} 27. Rb1 {[%emt 0:03:51]} Qa4 {[%emt 0:00:00]} 28. Qd1 {[%emt 0:00:57]} Qc6 {[%emt 0:00:00]} 29. g5 {[%emt 0:02:45]} Bg7 {[%emt 0:00:00]} 30. Kf2 {[%emt 0:01:30]} h6 {[%emt 0:00:54]} 31. h4 {[%emt 0:00:08]} Qe6 {[%emt 0:02:40]} 32. Qe2 {[%emt 0:03:43]} Rc8 {[%emt 0:01:25]} 33. Kg3 {[%emt 0:01:38]} f6 {[%emt 0:01:29]} 34. gxh6 {[%emt 0:02:30]} Bxh6 {[%emt 0:00:08]} 35. e4 {[%emt 0:00:27]} Kf7 {[%emt 0:02:47]} 36. Rb5 {[%emt 0:03:49]} a4 {[%emt 0:00:12]} 37. Ra5 {[%emt 0:01:14]} a3 {[%emt 0:00:23]} 38. Qf3 {[%emt 0:01:26]} Qb6 {[%emt 0:00:53]} 39. Ra4 {[%emt 0:01:30]} Qb2 {[%emt 0:00:54]} 40. Nxc4 {[%emt 0:01:09]} Rxc4 {[%emt 0:01:04]} 41. Rxc4 {[%emt 0:00:27]} a2 {[%emt 0:00:06]} 42. Ra4 {[%emt 0:00:27]} a1=Q {[%emt 0:00:09]} 43. Rxa1 {[%emt 0:00:03]} Qxa1 {[%emt 0:00:01]} 44. h5 {[%emt 0:00:38]} Qe1+ {[%emt 0:00:26]} 45. Kh3 {[%emt 0:00:12]} g5 {[%emt 0:00:38]} 46. fxg5 {[%emt 0:00:38]} Bxg5 {[%emt 0:00:03]} 47. e5 {[%emt 0:00:41]} Qe3 {[%emt 0:01:24]} 48. Qxe3 {[%emt 0:00:27]} Bxe3 {[%emt 0:00:01]} 49. exf6 {[%emt 0:00:13]} Kxf6 {[%emt 0:00:04]} 50. Kg4 {[%emt 0:00:26]} Bd2 {[%emt 0:00:05]} 51. c4 {[%emt 0:00:39]} Be3 {[%emt 0:00:03]} 52. d5 {[%emt 0:01:14]} Ke5 {[%emt 0:00:03]} 53. h6 {[%emt 0:00:32]} Bxh6 {[%emt 0:00:25]} 54. Kh5 {[%emt 0:00:03]} Bd2 {[%emt 0:01:22]} 55. Kg6 {[%emt 0:00:19]} Kd4 {[%emt 0:00:15]} 56. c5 {[%emt 0:00:24]} Kxc5 {[%emt 0:00:09]} 57. Kf7 {[%emt 0:00:09]} Kd6 {[%emt 0:00:02]} 58. Ke8 {[%emt 0:00:15]} Bb4 {[%emt 0:00:08]} 0-1

[Event "1000GM Spring IM-D 2024"]
[Site "New York"]
[Date "2024.03.31"]
[Round "8.9"]
[White "Espinosa, Pedro"]
[Black "Zaderman, Vitaly"]
[Result "1-0"]
[ECO "E94"]
[WhiteElo "2229"]
[BlackElo "2177"]
[Annotator "ChessBase"]
[PlyCount "89"]
[EventDate "2024.03.26"]
[EventType "tourn"]
[EventCountry "USA"]
[SourceTitle "playchess.com"]
[Source "ChessBase"]
[SourceQuality "1"]
[TimeControl "5400+30"]

1. d4 {[%emt 0:15:45]} Nf6 {[%emt 0:00:08]} 2. c4 {[%emt 0:00:37]} g6 {[%emt 0:00:06]} 3. Nc3 {[%emt 0:00:31]} Bg7 {[%emt 0:00:06]} 4. e4 {[%emt 0:00:15]} O-O {[%emt 0:00:07]} 5. Nf3 {[%emt 0:00:20]} d6 {[%emt 0:00:06]} 6. Be2 {[%emt 0:00:15]} e5 {[%emt 0:00:08]} 7. Be3 {[%emt 0:00:14]} Nbd7 {[%emt 0:02:23]} 8. O-O {[%emt 0:02:04]} c6 {[%emt 0:00:15]} 9. d5 {[%emt 0:02:17]} c5 {[%emt 0:00:16]} 10. Ne1 {[%emt 0:04:05]} a6 {[%emt 0:00:17]} 11. Rb1 {[%emt 0:04:34]} Ne8 {[%emt 0:04:31]} 12. Nd3 {[%emt 0:01:25]} f5 {[%emt 0:00:28]} 13. f3 {[%emt 0:01:15]} f4 {[%emt 0:00:14]} 14. Bf2 {[%emt 0:00:53]} g5 {[%emt 0:00:58]} 15. b4 {[%emt 0:02:19]} b6 {[%emt 0:00:13]} 16. Qa4 {[%emt 0:05:15]} Rf6 {[%emt 0:00:23]} 17. Rb2 {[%emt 0:06:40]} h5 {[%emt 0:00:26]} 18. Rfb1 {[%emt 0:04:30]} Kh7 {[%emt 0:00:24]} 19. Qd1 {[%emt 0:01:40]} Rg6 {[%emt 0:00:39]} 20. Na4 {[%emt 0:03:41]} Nef6 {[%emt 0:02:03]} 21. bxc5 {[%emt 0:01:45]} bxc5 {[%emt 0:00:08]} 22. Nb6 {[%emt 0:02:58]} Nxb6 {[%emt 0:00:29]} 23. Rxb6 {[%emt 0:00:10]} g4 {[%emt 0:00:02]} 24. Bh4 {[%emt 0:02:32]} Qf8 {[%emt 0:02:16]} 25. Rb8 {[%emt 0:03:22]} Rxb8 {[%emt 0:00:46]} 26. Rxb8 {[%emt 0:00:13]} gxf3 {[%emt 0:00:24]} 27. Bxf3 {[%emt 0:00:54]} Ng4 {[%emt 0:00:45]} 28. Bf2 {[%emt 0:04:40]} Ne3 {[%emt 0:02:00]} 29. Bxe3 {[%emt 0:01:54]} fxe3 {[%emt 0:00:07]} 30. Bxh5 {[%emt 0:02:02]} Rf6 {[%emt 0:00:12]} 31. Bf3 {[%emt 0:01:51]} Bh6 {[%emt 0:00:39]} 32. Qe2 {[%emt 0:03:14]} Qg8 {[%emt 0:02:28]} 33. Ne1 {[%emt 0:01:28]} Rf8 {[%emt 0:00:30]} 34. Nc2 {[%emt 0:01:25]} Qg5 {[%emt 0:00:14]} 35. Rb3 {[%emt 0:02:20]} Bh3 {[%emt 0:02:28]} 36. Nxe3 {[%emt 0:02:32]} Rg8 {[%emt 0:03:09]} 37. Nf5 {[%emt 0:03:27]} Bxf5 {[%emt 0:03:14]} 38. exf5 {[%emt 0:00:05]} Qc1+ {[%emt 0:05:20]} 39. Kf2 {[%emt 0:01:03]} Qh1 {[%emt 0:00:15]} 40. h3 {[%emt 0:04:14]} Bf4 {[%emt 0:00:16]} 41. Bg4 {[%emt 0:01:05]} Bh2 {[%emt 0:00:18]} 42. Qf1 {[%emt 0:00:52]} Qxf1+ {[%emt 0:00:26]} 43. Kxf1 {[%emt 0:00:03]} a5 {[%emt 0:01:08]} 44. g3 {[%emt 0:00:25]} a4 {[%emt 0:00:06]} 45. Rb7+ {[%emt 0:00:16]} 1-0

[Event "1000GM Spring IM-D 2024"]
[Site "New York"]
[Date "2024.03.31"]
[Round "9.1"]
[White "Lapshun, Yury"]
[Black "Yoo, Eugene"]
[Result "1/2-1/2"]
[ECO "B32"]
[WhiteElo "2332"]
[BlackElo "2205"]
[Annotator "RC"]
[PlyCount "51"]
[EventDate "2024.03.26"]
[EventType "tourn"]
[EventCountry "USA"]
[SourceTitle "playchess.com"]
[Source "ChessBase"]
[SourceQuality "1"]
[TimeControl "5400+30"]

1. e4 {[%emt 0:03:15]} c5 {[%emt 0:01:15]} 2. Nf3 {[%emt 0:00:48]} Nc6 {[%emt 0:00:25]} 3. d4 {[%emt 0:00:24]} cxd4 {[%emt 0:00:07]} 4. Nxd4 {[%emt 0:00:04]} e5 {[%emt 0:00:03]} 5. Nb5 {[%emt 0:00:09]} d6 {[%emt 0:00:05]} 6. N1c3 {[%emt 0:00:31]} a6 {[%emt 0:00:12]} 7. Na3 {[%emt 0:00:02]} Be6 {[%emt 0:00:21]} 8. Nc4 {[%emt 0:01:42]} Rb8 {[%emt 0:00:24]} 9. Ne3 {[%emt 0:02:40]} Nf6 {[%emt 0:00:40]} 10. g3 {[%emt 0:02:36]} h5 {[%emt 0:00:27]} 11. h3 {[%emt 0:02:09]} Nd4 {[%emt 0:06:31]} 12. Bg2 {[%emt 0:03:40]} g6 {[%emt 0:04:44]} 13. Ncd5 {[%emt 0:03:02]} Nxd5 {[%emt 0:07:13]} 14. Nxd5 {[%emt 0:00:46]} Bxd5 {[%emt 0:01:47]} 15. exd5 {[%emt 0:00:04]} Be7 {[%emt 0:01:22]} 16. O-O {[%emt 0:03:40]} Bg5 {[%emt 0:02:39]} 17. c3 {[%emt 0:19:39]} Nf5 {[%emt 0:02:09]} 18. Be4 {[%emt 0:07:52]} Bxc1 {[%emt 0:07:01]} 19. Rxc1 {[%emt 0:03:40]} h4 {[%emt 0:01:57]} 20. Bxf5 {[%emt 0:02:05]} gxf5 {[%emt 0:00:17]} 21. g4 {[%emt 0:02:56]} b5 {[%emt 0:10:25]} 22. Qe2 {[%emt 0:03:28]} Rg8 {[%emt 0:05:23]} 23. f4 {[%emt 0:36:48]} fxg4 {[%emt 0:46:33]} 24. fxe5 gxh3+ {[%emt 0:00:30]} 25. Kh1 Qe7 {[%emt 0:00:30]} 26. Ra1 {[%emt 0:01:30]} 1/2-1/2

[Event "1000GM Spring IM-D 2024"]
[Site "New York"]
[Date "2024.04.01"]
[Round "9.2"]
[White "Ho, Cooper"]
[Black "Fedorowicz, John"]
[Result "1/2-1/2"]
[ECO "B33"]
[WhiteElo "2004"]
[BlackElo "2372"]
[Annotator "RC"]
[PlyCount "82"]
[EventDate "2024.03.26"]
[EventType "tourn"]
[EventCountry "USA"]
[SourceTitle "playchess.com"]
[Source "ChessBase"]
[SourceQuality "1"]
[TimeControl "5400+30"]

1. e4 {[%emt 0:00:46]} c5 {[%emt 0:00:34]} 2. Nf3 {[%emt 0:00:08]} Nc6 {[%emt 0:00:08]} 3. d4 {[%emt 0:00:06]} cxd4 {[%emt 0:00:06]} 4. Nxd4 {[%emt 0:00:05]} Qb6 {[%emt 0:00:28]} 5. Nb3 {[%emt 0:00:27]} Nf6 {[%emt 0:00:11]} 6. Nc3 {[%emt 0:00:16]} e6 {[%emt 0:00:08]} 7. a3 {[%emt 0:02:07]} a6 {[%emt 0:01:56]} 8. Bf4 {[%emt 0:00:45]} e5 {[%emt 0:11:23]} 9. Bg5 {[%emt 0:00:17]} Be7 {[%emt 0:01:09]} 10. Be3 {[%emt 0:01:43]} Qc7 {[%emt 0:01:49]} 11. g4 {[%emt 0:01:40]} h6 {[%emt 0:00:05]} 12. Be2 {[%emt 0:24:24]} d6 {[%emt 0:00:36]} 13. Rg1 {[%emt 0:02:15]} g5 {[%emt 0:04:33]} 14. Qd2 {[%emt 0:06:53]} Be6 {[%emt 0:02:15]} 15. f3 {[%emt 0:02:51]} Na5 {[%emt 0:03:30]} 16. Nxa5 {[%emt 0:03:10]} Qxa5 {[%emt 0:00:05]} 17. b4 {[%emt 0:00:45]} Qc7 {[%emt 0:00:17]} 18. Nd5 {[%emt 0:00:48]} Nxd5 {[%emt 0:01:14]} 19. exd5 {[%emt 0:00:13]} Bd7 {[%emt 0:00:05]} 20. c4 {[%emt 0:02:48]} a5 {[%emt 0:00:44]} 21. Kf2 {[%emt 0:02:27]} h5 {[%emt 0:05:20]} 22. Kg2 {[%emt 0:03:44]} f6 {[%emt 0:06:50]} 23. Rac1 {[%emt 0:04:29]} hxg4 {[%emt 0:03:33]} 24. fxg4 {[%emt 0:00:10]} axb4 {[%emt 0:04:04]} 25. axb4 {[%emt 0:00:20]} b6 {[%emt 0:01:12]} 26. Rgd1 {[%emt 0:05:32]} Ba4 {[%emt 0:03:18]} 27. Rf1 {[%emt 0:01:53]} Bd7 {[%emt 0:00:06]} 28. Rfd1 {[%emt 0:08:14]} Ba4 {[%emt 0:00:07]} 29. Rf1 {[%emt 0:03:38]} Bd7 {[%emt 0:00:06]} 30. Ra1 {[%emt 0:00:59]} Rb8 {[%emt 0:00:05]} 31. h3 {[%emt 0:01:38]} O-O {[%emt 0:03:49]} 32. Bd3 {[%emt 0:03:18]} b5 {[%emt 0:03:40]} 33. Rfc1 {[%emt 0:04:54]} bxc4 {[%emt 0:00:33]} 34. Rxc4 {[%emt 0:00:21]} Qd8 {[%emt 0:00:18]} 35. Ra7 {[%emt 0:03:40]} Ra8 {[%emt 0:01:15]} 36. Rxa8 {[%emt 0:02:22]} Qxa8 {[%emt 0:00:31]} 37. Bb1 {[%emt 0:00:11]} Bb5 {[%emt 0:03:10]} 38. Rc7 {[%emt 0:00:57]} Bd8 {[%emt 0:01:45]} 39. Qc2 {[%emt 0:01:18]} f5 {[%emt 0:01:54]} 40. Ra7 {[%emt 0:01:51]} Qxd5+ {[%emt 0:01:18]} 41. Kh2 {[%emt 0:00:43]} Qf3 {[%emt 0:36:50]} 1/2-1/2

[Event "1000GM Spring IM-D 2024"]
[Site "New York"]
[Date "2024.03.31"]
[Round "9.3"]
[White "Cherukuri, Nitesh"]
[Black "Polyik, Peter"]
[Result "1-0"]
[ECO "B55"]
[WhiteElo "2000"]
[BlackElo "2295"]
[Annotator "RC"]
[PlyCount "39"]
[EventDate "2024.03.26"]
[EventType "tourn"]
[EventCountry "USA"]
[SourceTitle "playchess.com"]
[Source "ChessBase"]
[SourceQuality "1"]
[TimeControl "5400+30"]

1. e4 {[%emt 0:00:30]} c5 {[%emt 0:12:37]} 2. Nf3 {[%emt 0:00:09]} d6 {[%emt 0:00:06]} 3. d4 {[%emt 0:00:08]} cxd4 {[%emt 0:00:08]} 4. Nxd4 {[%emt 0:00:06]} Nf6 {[%emt 0:00:03]} 5. f3 {[%emt 0:00:07]} e5 {[%emt 0:00:15]} 6. Nb3 {[%emt 0:00:05]} d5 {[%emt 0:00:09]} 7. Bg5 {[%emt 0:00:05]} d4 {[%emt 0:01:31]} 8. c3 {[%emt 0:00:15]} Nc6 {[%emt 0:00:23]} 9. Bb5 {[%emt 0:00:09]} dxc3 {[%emt 0:12:37]} 10. Qxd8+ {[%emt 0:00:57]} Kxd8 {[%emt 0:00:05]} 11. Nxc3 {[%emt 0:00:12]} Be6 {[%emt 0:00:58]} 12. O-O-O+ {[%emt 0:03:11]} Kc7 {[%emt 0:02:10]} 13. Kb1 {[%emt 0:13:50]} a6 {[%emt 0:01:26]} 14. Be2 {[%emt 0:01:41]} Rd8 {[%emt 0:01:01]} 15. Rxd8 {[%emt 0:00:52]} Nxd8 {[%emt 0:00:14]} 16. Rc1 {[%emt 0:07:59]} Kb8 {[%emt 0:00:37]} 17. Na4 {[%emt 0:02:13]} Bxb3 {[%emt 0:01:34]} 18. axb3 {[%emt 0:03:20]} Ne6 {[%emt 0:00:10]} 19. Be3 {[%emt 0:02:38]} b5 {[%emt 0:08:22]} 20. Nc5 {[%emt 0:04:47]} 1-0

[Event "1000GM Spring IM-D 2024"]
[Site "New York"]
[Date "2024.03.31"]
[Round "9.4"]
[White "Jakovljevic, Vlado"]
[Black "Mou, Iris"]
[Result "1/2-1/2"]
[ECO "D26"]
[WhiteElo "2356"]
[BlackElo "2216"]
[Annotator "RC"]
[PlyCount "33"]
[EventDate "2024.03.26"]
[EventType "tourn"]
[EventCountry "USA"]
[SourceTitle "playchess.com"]
[Source "ChessBase"]
[SourceQuality "1"]
[TimeControl "5400+30"]

1. Nf3 {[%emt 0:00:18]} d5 {[%emt 0:00:22]} 2. d4 {[%emt 0:00:07]} Nf6 {[%emt 0:00:14]} 3. c4 {[%emt 0:00:16]} e6 {[%emt 0:00:07]} 4. Nc3 {[%emt 0:01:09]} a6 {[%emt 0:00:13]} 5. e3 {[%emt 0:00:54]} dxc4 {[%emt 0:00:16]} 6. Bxc4 {[%emt 0:01:07]} b5 {[%emt 0:00:12]} 7. Bb3 {[%emt 0:00:04]} Bb7 {[%emt 0:01:08]} 8. O-O {[%emt 0:00:13]} Be7 {[%emt 0:01:21]} 9. Qe2 {[%emt 0:00:12]} O-O {[%emt 0:01:39]} 10. Rd1 {[%emt 0:04:30]} Nbd7 {[%emt 0:01:08]} 11. a3 {[%emt 0:09:44]} c5 {[%emt 0:12:29]} 12. dxc5 {[%emt 0:12:47]} Qc7 {[%emt 0:08:30]} 13. e4 {[%emt 0:06:16]} Nxc5 {[%emt 0:03:41]} 14. Bc2 {[%emt 0:00:21]} Rfd8 {[%emt 0:02:33]} 15. Bg5 {[%emt 0:02:59]} Rxd1+ {[%emt 0:16:54]} 16. Rxd1 {[%emt 0:00:12]} Rd8 {[%emt 0:00:19]} 17. Rxd8+ {[%emt 0:25:51]} 1/2-1/2

[Event "1000GM Spring IM-D 2024"]
[Site "New York"]
[Date "2024.04.01"]
[Round "9.5"]
[White "Ho, Carter"]
[Black "Khodzhamkuliev, Bahadur"]
[Result "0-1"]
[ECO "B00"]
[WhiteElo "2108"]
[BlackElo "2159"]
[Annotator "RC"]
[PlyCount "76"]
[EventDate "2024.03.26"]
[EventType "tourn"]
[EventCountry "USA"]
[SourceTitle "playchess.com"]
[Source "ChessBase"]
[SourceQuality "1"]
[TimeControl "5400+30"]

1. e4 {[%emt 0:01:47]} Nc6 {[%emt 0:00:11]} 2. d4 {[%emt 0:00:17]} d6 {[%emt 0:00:05]} 3. d5 {[%emt 0:00:11]} Nb8 {[%emt 0:00:06]} 4. Nc3 {[%emt 0:00:15]} Nf6 {[%emt 0:00:19]} 5. h3 {[%emt 0:00:37]} g6 {[%emt 0:00:41]} 6. Be3 {[%emt 0:00:27]} Bg7 {[%emt 0:01:48]} 7. Qd2 {[%emt 0:04:08]} c5 {[%emt 0:00:40]} 8. Nf3 {[%emt 0:02:28]} O-O {[%emt 0:00:28]} 9. O-O-O {[%emt 0:01:58]} b5 {[%emt 0:03:28]} 10. Bxb5 {[%emt 0:03:55]} Qa5 {[%emt 0:02:05]} 11. Bh6 {[%emt 0:05:35]} Bh8 {[%emt 0:06:54]} 12. Bxf8 {[%emt 0:07:04]} Kxf8 {[%emt 0:00:43]} 13. e5 {[%emt 0:14:48]} Ne4 {[%emt 0:06:06]} 14. Nxe4 {[%emt 0:00:17]} Qxb5 {[%emt 0:00:23]} 15. Nc3 {[%emt 0:00:42]} Qb6 {[%emt 0:04:15]} 16. Qf4 {[%emt 0:07:05]} Nd7 {[%emt 0:11:01]} 17. exd6 {[%emt 0:11:43]} exd6 {[%emt 0:06:36]} 18. Ng5 {[%emt 0:04:36]} Ne5 {[%emt 0:01:55]} 19. Rde1 {[%emt 0:04:37]} h6 {[%emt 0:08:52]} 20. Qh4 {[%emt 0:11:16]} Rb8 {[%emt 0:03:15]} 21. b3 {[%emt 0:03:57]} Qb4 {[%emt 0:04:38]} 22. Nge4 {[%emt 0:01:30]} Bf5 {[%emt 0:03:58]} 23. Qxh6+ {[%emt 0:02:32]} Bg7 {[%emt 0:00:47]} 24. Qe3 {[%emt 0:00:27]} c4 {[%emt 0:01:18]} 25. f4 {[%emt 0:01:55]} Nd3+ {[%emt 0:01:23]} 26. cxd3 {[%emt 0:00:11]} cxb3 {[%emt 0:07:15]} 27. Kd2 {[%emt 0:03:41]} bxa2 {[%emt 0:01:24]} 28. Ke2 {[%emt 0:00:07]} Bxc3 {[%emt 0:00:29]} 29. Nxc3 {[%emt 0:00:22]} Qxc3 {[%emt 0:01:00]} 30. Kf3 {[%emt 0:00:41]} Qxd3 {[%emt 0:01:58]} 31. Qxd3 {[%emt 0:00:37]} Bxd3 {[%emt 0:00:04]} 32. Ra1 {[%emt 0:00:41]} Rb1 {[%emt 0:02:00]} 33. Rxa2 {[%emt 0:00:20]} Rxh1 {[%emt 0:00:07]} 34. Rxa7 {[%emt 0:00:03]} Bc4 {[%emt 0:00:42]} 35. Rd7 {[%emt 0:00:41]} Bxd5+ {[%emt 0:01:33]} 36. Kg3 {[%emt 0:00:06]} Rg1 {[%emt 0:00:34]} 37. Rxd6 {[%emt 0:00:04]} Rxg2+ {[%emt 0:00:26]} 38. Kh4 {[%emt 0:00:03]} Be6 {[%emt 0:00:48]} 0-1

[Event "1000GM Spring IM-D 2024"]
[Site "New York"]
[Date "2024.03.31"]
[Round "9.6"]
[White "Safranek, William"]
[Black "Zaderman, Vitaly"]
[Result "1-0"]
[ECO "B06"]
[WhiteElo "1950"]
[BlackElo "2177"]
[Annotator "RC"]
[PlyCount "47"]
[EventDate "2024.03.26"]
[EventType "tourn"]
[EventCountry "USA"]
[SourceTitle "playchess.com"]
[Source "ChessBase"]
[SourceQuality "1"]
[TimeControl "5400+30"]

1. e4 {[%emt 0:00:03]} e5 {[%emt 0:00:04]} 2. Nf3 {[%emt 0:00:05]} d6 {[%emt 0:00:07]} 3. d4 {[%emt 0:00:11]} exd4 {[%emt 0:00:08]} 4. Nxd4 {[%emt 0:00:05]} g6 {[%emt 0:00:06]} 5. Nc3 {[%emt 0:00:05]} Bg7 {[%emt 0:00:05]} 6. Be3 {[%emt 0:00:06]} Nc6 {[%emt 0:00:05]} 7. Qd2 {[%emt 0:02:03]} Nge7 {[%emt 0:00:16]} 8. Bc4 {[%emt 0:02:14]} a6 {[%emt 0:00:13]} 9. Nxc6 {[%emt 0:02:35]} Nxc6 {[%emt 0:00:12]} 10. Bh6 {[%emt 0:00:14]} O-O {[%emt 0:00:38]} 11. O-O-O {[%emt 0:00:39]} Be6 {[%emt 0:00:10]} 12. Bxg7 {[%emt 0:01:51]} Kxg7 {[%emt 0:00:07]} 13. Nd5 {[%emt 0:00:34]} Ne5 {[%emt 0:04:43]} 14. Bb3 {[%emt 0:03:47]} c5 {[%emt 0:03:20]} 15. f4 {[%emt 0:02:55]} Nc6 {[%emt 0:00:55]} 16. Rhf1 {[%emt 0:04:17]} f5 {[%emt 0:02:23]} 17. Qc3+ {[%emt 0:04:19]} Nd4 {[%emt 0:00:14]} 18. Rxd4 {[%emt 0:00:04]} cxd4 {[%emt 0:00:11]} 19. Qxd4+ {[%emt 0:00:03]} Kf7 {[%emt 0:02:06]} 20. exf5 {[%emt 0:03:42]} gxf5 {[%emt 0:00:25]} 21. Re1 {[%emt 0:00:35]} Bxd5 {[%emt 0:02:22]} 22. Bxd5+ {[%emt 0:01:14]} Kg6 {[%emt 0:00:12]} 23. Re3 {[%emt 0:00:32]} h5 {[%emt 0:00:21]} 24. Rg3+ {[%emt 0:00:07]} 1-0

[Event "1000GM Spring IM-D 2024"]
[Site "New York"]
[Date "2024.03.31"]
[Round "9.7"]
[White "Bonin, Jay"]
[Black "Espinosa, Pedro"]
[Result "1-0"]
[ECO "D23"]
[WhiteElo "2154"]
[BlackElo "2229"]
[Annotator "RC"]
[PlyCount "120"]
[EventDate "2024.03.26"]
[EventType "tourn"]
[EventCountry "USA"]
[SourceTitle "playchess.com"]
[Source "ChessBase"]
[SourceQuality "1"]
[TimeControl "5400+30"]

1. d4 {[%emt 1:31:00]} d5 {[%emt 1:31:00]} 2. Nf3 {[%emt 0:00:30]} Nf6 {[%emt 0:00:30]} 3. c4 c6 {[%emt 0:00:30]} 4. Qb3 {[%emt 0:01:00]} dxc4 {[%emt 0:00:30]} 5. Qxc4 {[%emt 0:00:30]} Bf5 {[%emt 0:00:30]} 6. Nbd2 {[%emt 0:00:30]} e6 {[%emt 0:00:30]} 7. g3 {[%emt 0:00:30]} Nbd7 {[%emt 0:00:30]} 8. Bg2 {[%emt 0:00:30]} Be7 9. O-O {[%emt 0:00:30]} Ne4 {[%emt 0:01:00]} 10. Qb3 {[%emt 0:00:30]} Qb6 {[%emt 0:00:30]} 11. Nc4 {[%emt 0:00:30]} Qa6 {[%emt 0:00:30]} 12. Nfe5 {[%emt 0:00:30]} Nxe5 {[%emt 0:00:30]} 13. Nxe5 {[%emt 0:00:30]} Nd6 {[%emt 0:00:30]} 14. Re1 Be4 15. f3 Bd5 16. Qc2 Qb6 17. e3 Rc8 18. Nd3 O-O 19. b3 Bf6 20. Bb2 Rfd8 21. Nc5 Nf5 22. Rad1 Bg5 23. Qc3 Bxe3+ 24. Rxe3 Nxe3 25. Qxe3 Qc7 26. Bh3 b6 27. Nd3 a5 28. Nf4 a4 29. Nh5 Qe7 30. bxa4 Ra8 31. Ba3 c5 32. dxc5 Rxa4 33. Bb2 Qxc5 34. Bd4 Qc2 35. Rc1 Qg6 36. Nf4 Qh6 37. Bxb6 Rda8 38. Bd4 Rxa2 39. Qc3 Rd8 40. Qc7 Raa8 41. Qe5 Bxf3 42. Rc7 Qf6 43. Qxf6 gxf6 44. Bxf6 Rdc8 45. Nxe6 Rxc7 46. Nxc7 Rb8 47. Kf2 Bc6 48. Bf1 Rb7 49. Na6 Bb5 50. Nc5 Rb6 51. Bd4 Bxf1 52. Kxf1 Rd6 53. Be3 Rd5 54. Kf2 Rf5+ 55. Kg2 Rh5 56. h4 Rd5 57. Ne4 Kg7 58. Bf4 Ra5 59. Nd6 Ra3 60. g4 Rb3 1-0

[Event "1000GM Spring IM-D 2024"]
[Site "New York"]
[Date "2024.03.31"]
[Round "9.8"]
[White "Shangin, Lev"]
[Black "Urhegyi, Marton"]
[Result "1/2-1/2"]
[ECO "E12"]
[WhiteElo "1994"]
[BlackElo "2258"]
[Annotator "RC"]
[PlyCount "30"]
[EventDate "2024.03.26"]
[EventType "tourn"]
[EventCountry "USA"]
[SourceTitle "playchess.com"]
[Source "ChessBase"]
[SourceQuality "1"]
[TimeControl "5400+30"]

1. d4 {[%emt 0:00:00]} e6 {[%emt 0:13:07]} 2. c4 {[%emt 0:00:37]} b6 {[%emt 0:00:04]} 3. Nf3 {[%emt 0:03:11]} Bb7 {[%emt 0:00:10]} 4. Bg5 {[%emt 0:01:07]} Be7 {[%emt 0:01:32]} 5. Bxe7 {[%emt 0:01:01]} Qxe7 {[%emt 0:00:07]} 6. Nc3 {[%emt 0:01:13]} Nf6 {[%emt 0:01:46]} 7. e3 {[%emt 0:02:06]} Ne4 {[%emt 0:00:48]} 8. Nxe4 {[%emt 0:05:49]} Bxe4 {[%emt 0:01:14]} 9. Be2 {[%emt 0:03:03]} O-O {[%emt 0:02:19]} 10. O-O {[%emt 0:00:54]} a5 {[%emt 0:02:28]} 11. Nd2 {[%emt 0:04:06]} Bb7 {[%emt 0:00:24]} 12. Bf3 {[%emt 0:03:39]} Bxf3 {[%emt 0:00:58]} 13. Qxf3 {[%emt 0:00:44]} Nc6 {[%emt 0:01:27]} 14. a3 {[%emt 0:01:05]} a4 {[%emt 0:02:08]} 15. Qg3 {[%emt 0:02:04]} e5 {[%emt 0:04:05]} 1/2-1/2